bitfinex/quotes_BTCUSD_20260215
["timestamp","ask_amount","ask_price","bid_price","bid_amount"]
[1771186519330,0.02285433,68472.0,68460.0,0.51266715]
[1771186524153,0.30116862,68473.0,68460.0,1.0251343]
[1771186524365,0.30116862,68473.0,68465.0,0.00930678]
[1771186525219,0.00012862,68473.0,68465.0,0.00930678]
[1771186526962,0.00012862,68473.0,68465.0,0.00950678]
[1771186528818,0.02285433,68480.0,68465.0,0.00950678]
[1771186528948,0.0004,68490.0,68471.0,0.16079504]
[1771186528949,0.02285433,68488.0,68471.0,0.16079504]
[1771186529143,0.02285433,68488.0,68473.0,0.51246715]
[1771186529366,0.0004,68490.0,68474.0,0.17010182]
[1771186530046,0.0004,68490.0,68474.0,0.00930678]
[1771186530257,0.02285433,68486.0,68470.0,0.82894715]
[1771186530462,0.02285433,68486.0,68473.0,0.51246715]
[1771186530682,0.0004,68490.0,68475.0,0.16079504]
[1771186530923,0.0004,68490.0,68479.0,0.68256897]
[1771186531116,0.02325433,68494.0,68479.0,0.68256897]
[1771186531117,0.0004,68494.0,68485.0,0.00930678]
[1771186531345,0.0004,68494.0,68488.0,0.16079504]
[1771186531470,0.02340403,68501.0,68485.0,0.31676]
[1771186531471,0.0005497,68501.0,68490.0,0.00930678]
[1771186531673,0.0005497,68501.0,68491.0,0.31688]
[1771186532498,0.00067847,68501.0,68491.0,0.31688]
[1771186534492,0.00107847,68501.0,68491.0,0.31688]
[1771186534708,0.0239328,68501.0,68491.0,0.31688]
[1771186536044,0.02285433,68500.0,68491.0,0.31688]
[1771186536469,0.00107847,68501.0,68491.0,0.31688]
[1771186537514,0.16228385,68500.0,68487.0,0.3178]
[1771186537929,0.16228385,68498.0,68487.0,0.3178]
[1771186538120,0.16228385,68496.0,68482.0,0.09356]
[1771186538316,0.02285433,68495.0,68482.0,0.09356]
[1771186538962,0.02285433,68493.0,68482.0,0.09356]
[1771186539170,0.02285433,68493.0,68482.0,0.09339895]
[1771186539384,0.02285433,68493.0,68480.0,0.31788]
[1771186540025,0.02285433,68493.0,68480.0,0.34064777]
[1771186540243,0.02285433,68499.0,68481.0,0.02276777]
[1771186540456,0.16228385,68496.0,68480.0,0.31788]
[1771186540670,0.02285433,68495.0,68480.0,0.31788]
[1771186541096,0.16228385,68493.0,68480.0,0.51246715]
[1771186541304,0.29988,68495.0,68483.0,0.51246715]
[1771186541519,0.29988,68495.0,68485.0,0.51246715]
[1771186541698,0.29988,68495.0,68483.0,0.16079504]
[1771186541932,0.29988,68495.0,68481.0,0.02276777]
[1771186545085,0.32269433,68497.0,68481.0,0.02276777]
[1771186545694,0.09459847,68501.0,68481.0,0.02276777]
[1771186545695,0.00107847,68501.0,68488.0,0.15586286]
[1771186546022,0.00107847,68501.0,68491.0,0.02496089]
[1771186546214,0.00107847,68501.0,68493.0,0.02496089]
[1771186546633,0.00107847,68501.0,68494.0,0.02496089]
[1771186546831,0.00107847,68501.0,68495.0,0.00140622]
[1771186547074,0.00107847,68501.0,68495.0,0.02636711]
[1771186547426,0.00107847,68501.0,68495.0,0.02620605]
[1771186548771,0.00107847,68501.0,68495.0,0.02496089]
[1771186549601,0.00107847,68501.0,68495.0,0.02588386]
[1771186549906,0.00107847,68501.0,68493.0,0.02496089]
[1771186550473,0.00107847,68501.0,68493.0,0.01404079]
[1771186551848,0.00107847,68501.0,68490.0,0.51246715]
[1771186553534,0.0729749,68517.0,68490.0,0.51246715]
[1771186553535,0.0002225,68520.0,68493.0,0.15586286]
[1771186553706,0.0002225,68520.0,68506.0,0.02496089]
[1771186554101,0.07,68517.0,68507.0,0.02496089]
[1771186554491,0.25696,68519.0,68507.0,0.02496089]
[1771186554700,0.25696,68519.0,68509.0,0.51246715]
[1771186554907,0.25696,68519.0,68510.0,0.02496089]
[1771186556135,0.0004,68515.0,68510.0,0.02496089]
[1771186557661,0.25696,68519.0,68510.0,0.02496089]
[1771186558501,0.0002225,68520.0,68510.0,0.02496089]
[1771186559961,0.0002225,68520.0,68509.0,0.51246715]
[1771186560692,0.0002225,68520.0,68509.0,0.5123061]
[1771186560915,0.0002225,68520.0,68501.0,0.1476]
[1771186561156,0.0002225,68520.0,68500.0,0.51246715]
[1771186561157,0.16318559,68509.0,68493.0,0.00012877]
[1771186561358,0.29916,68509.0,68500.0,0.51246715]
[1771186561578,0.32275937,68509.0,68500.0,0.51246715]
[1771186561963,0.32275937,68509.0,68493.0,0.02508966]
[1771186562229,0.29916,68509.0,68499.0,0.57610508]
[1771186562451,0.29916,68509.0,68499.0,0.60106597]
[1771186563298,0.29916,68509.0,68500.0,0.02496089]
[1771186563714,0.32275937,68514.0,68500.0,0.02496089]
[1771186564830,0.02359937,68514.0,68500.0,0.02496089]
[1771186565013,0.29916,68514.0,68500.0,0.02496089]
[1771186566985,0.02359937,68512.0,68494.0,0.02496089]
[1771186567435,0.29916,68514.0,68494.0,0.02496089]
[1771186567436,0.02359937,68510.0,68494.0,0.02496089]
[1771186568027,0.02359937,68510.0,68493.0,0.00012877]
[1771186568252,0.18678496,68509.0,68494.0,0.02496089]
[1771186568456,0.02359937,68509.0,68494.0,0.02496089]
[1771186569448,0.29916,68514.0,68495.0,0.15586286]
[1771186569698,0.29916,68514.0,68496.0,0.15586286]
[1771186569900,0.32275937,68514.0,68497.0,0.02496089]
[1771186570156,0.02359937,68513.0,68497.0,0.02496089]
[1771186570345,0.0004,68512.0,68497.0,0.02496089]
[1771186570630,0.02399937,68512.0,68497.0,0.02496089]
[1771186572028,0.02359937,68510.0,68495.0,0.0001957]
[1771186572653,0.02359937,68510.0,68495.0,0.02515659]
[1771186573434,0.0004,68512.0,68490.0,0.0002]
[1771186573435,0.16838548,68509.0,68490.0,0.0002]
[1771186573641,0.02280801,68506.0,68490.0,0.0002]
[1771186573811,0.16838548,68503.0,68490.0,0.0002]
[1771186574035,0.16838548,68501.0,68490.0,0.0002]
[1771186574171,0.16838548,68497.0,68490.0,0.0002]
[1771186574357,0.39248,68502.0,68477.0,0.09352]
[1771186574358,0.02280801,68494.0,68477.0,0.09352]
[1771186574969,0.02280801,68494.0,68479.0,0.02358221]
[1771186575871,0.02280801,68494.0,68480.0,0.57609221]
[1771186576371,0.39248,68502.0,68480.0,0.57609221]
[1771186576572,0.29892,68501.0,68483.0,0.02399951]
[1771186576834,0.02280801,68500.0,68483.0,0.02399951]
[1771186577793,0.02280801,68500.0,68483.0,0.15730011]
[1771186578013,0.02280801,68500.0,68484.0,0.02358221]
[1771186578975,0.16838548,68500.0,68484.0,0.02358221]
[1771186579202,0.02280801,68499.0,68484.0,0.02358221]
[1771186580068,0.16838548,68498.0,68483.0,0.0004173]
[1771186580369,0.02280801,68493.0,68483.0,0.0004173]
[1771186581593,0.02280801,68490.0,68474.0,0.0002]
[1771186581758,0.09352,68504.0,68474.0,0.0002]
[1771186581759,0.02280801,68488.0,68474.0,0.0002]
[1771186581943,0.25880801,68488.0,68474.0,0.02378221]
[1771186582144,0.07002,68492.0,68478.0,0.57609221]
[1771186582341,0.07002,68492.0,68479.0,0.02358221]
[1771186582560,0.07002,68492.0,68478.0,0.73297502]
[1771186582561,0.07002,68492.0,68480.0,0.02358221]
[1771186582760,0.07002,68492.0,68474.0,0.0002]
[1771186582761,0.02280801,68490.0,68474.0,0.0002]
[1771186582943,0.16838548,68487.0,68474.0,0.0002]
[1771186583150,0.02280801,68486.0,68474.0,0.0002]
[1771186585383,0.02280801,68486.0,68476.0,3.903e-05]
[1771186585581,0.02280801,68486.0,68471.0,0.0002173]
[1771186585779,0.29888,68487.0,68471.0,0.0002173]
[1771186585780,0.19119349,68484.0,68471.0,0.0002173]
[1771186585982,0.16838548,68482.0,68471.0,0.0002173]
[1771186586230,0.29888,68487.0,68471.0,0.0002173]
[1771186586231,0.16838548,68480.0,68471.0,0.0002173]
[1771186586425,0.02280801,68479.0,68472.0,0.0002]
[1771186587581,0.02280801,68477.0,68469.0,0.0002]
[1771186588094,0.29904,68476.0,68469.0,0.0002]
[1771186591713,0.02280801,68475.0,68469.0,0.0002]
[1771186591918,0.02280801,68480.0,68469.0,0.0002]
[1771186592141,0.299,68479.0,68470.0,0.51245119]
[1771186592347,0.299,68478.0,68470.0,0.5360334]
[1771186592958,0.29908867,68479.0,68470.0,0.5360334]
[1771186595240,0.29908867,68479.0,68470.0,0.51245119]
[1771186595456,0.29908867,68479.0,68469.0,0.0002]
[1771186596101,0.29908867,68479.0,68469.0,0.51265119]
[1771186596539,0.16838548,68478.0,68469.0,0.0002]
[1771186596757,0.02280801,68477.0,68469.0,0.0002]
[1771186597410,0.29908867,68479.0,68460.0,0.0002]
[1771186597411,0.51245119,68471.0,68460.0,0.0002]
[1771186597704,0.02280801,68469.0,68460.0,0.0002]
[1771186597825,0.29916,68468.0,68460.0,0.0002]
[1771186600670,0.02280801,68467.0,68460.0,0.000155]
[1771186600875,0.16838548,68466.0,68455.0,0.0002]
[1771186601050,0.02280801,68464.0,68455.0,0.0002]
[1771186601248,0.02280801,68463.0,68455.0,0.0002]
[1771186603090,0.02280801,68463.0,68453.0,0.0002]
[1771186603939,0.02485044,68461.0,68453.0,0.0002]
[1771186605105,0.16213407,68461.0,68453.0,0.0002]
[1771186605321,0.02331101,68460.0,68453.0,0.0002]
[1771186605517,0.29976,68459.0,68453.0,0.0002]
[1771186605948,0.51245119,68470.0,68453.0,0.0002]
[1771186605949,0.02331101,68477.0,68454.0,0.02439591]
[1771186606166,0.09356,68468.0,68460.0,0.51245119]
[1771186606377,0.22384,68467.0,68460.0,0.51245119]
[1771186606620,0.22384,68467.0,68457.0,0.5368471]
[1771186607278,0.22384,68467.0,68458.0,0.00145913]
[1771186607452,0.29984,68466.0,68458.0,0.02439591]
[1771186608086,0.29984,68466.0,68458.0,0.02423491]
[1771186609140,0.29984,68466.0,68445.0,0.1476]
[1771186609141,0.16213407,68460.0,68438.0,0.02439591]
[1771186609342,0.02331101,68457.0,68438.0,0.02439591]
[1771186609572,0.02331101,68455.0,68440.0,0.51245119]
[1771186609777,0.29988,68454.0,68440.0,0.51245119]
[1771186610409,0.32319101,68454.0,68440.0,0.51245119]
[1771186610557,0.32319101,68454.0,68446.0,0.00032862]
[1771186612244,0.02331101,68453.0,68446.0,0.00032862]
[1771186612725,0.02331101,68453.0,68432.0,0.1539402]
[1771186612726,0.02331101,68449.0,68432.0,0.02439591]
[1771186612953,0.02331101,68449.0,68439.0,0.00087462]
[1771186614547,0.02331101,68449.0,68444.0,0.0002]
[1771186614761,0.16213407,68449.0,68444.0,0.0002]
[1771186614967,0.29988,68454.0,68439.0,0.00087462]
[1771186614968,0.16213407,68448.0,68439.0,0.00087462]
[1771186615181,0.29988,68454.0,68428.0,0.09356]
[1771186615182,0.02331101,68447.0,68428.0,0.09356]
[1771186615385,0.02331101,68447.0,68409.0,0.0002657]
[1771186615386,0.57709686,68440.0,68415.0,0.02439591]
[1771186615589,0.02331101,68435.0,68415.0,0.02439591]
[1771186615791,0.2914,68439.0,68415.0,0.02439591]
[1771186615792,0.16213407,68432.0,68415.0,0.02439591]
[1771186615988,0.2914,68439.0,68415.0,0.02439591]
[1771186615989,0.02331101,68429.0,68415.0,0.02439591]
[1771186617475,0.3002,68430.0,68415.0,0.1539402]
[1771186617681,0.3002,68430.0,68416.0,0.15471486]
[1771186617860,0.3002,68430.0,68417.0,0.02439591]
[1771186618744,0.3002,68430.0,68418.0,0.1539402]
[1771186618869,0.3002,68430.0,68419.0,0.02439591]
[1771186619283,0.16213407,68439.0,68420.0,0.57709686]
[1771186619513,0.17396,68438.0,68424.0,0.02439591]
[1771186619715,0.17396,68438.0,68425.0,0.02439591]
[1771186620157,0.17396,68438.0,68427.0,0.02439591]
[1771186620324,0.17396,68438.0,68428.0,0.1539402]
[1771186620525,0.02331101,68446.0,68429.0,0.02439591]
[1771186620728,0.21796,68445.0,68429.0,0.02439591]
[1771186621588,0.02331101,68444.0,68429.0,0.02439591]
[1771186622060,0.00042868,68447.0,68430.0,0.02439591]
[1771186622282,0.30042868,68447.0,68433.0,0.1539402]
[1771186622444,0.30042868,68447.0,68434.0,0.02439591]
[1771186623027,0.00042868,68447.0,68435.0,0.1539402]
[1771186623231,0.00042868,68447.0,68436.0,0.1539402]
[1771186623428,0.00042868,68447.0,68437.0,0.02439591]
[1771186623652,0.02331101,68446.0,68422.0,0.17833611]
[1771186623849,0.16213407,68446.0,68424.0,0.1539402]
[1771186624057,0.16213407,68444.0,68425.0,0.02439591]
[1771186624261,0.16213407,68444.0,68421.0,0.3015402]
[1771186624262,0.00042868,68447.0,68426.0,0.1539402]
[1771186624576,0.02373969,68447.0,68429.0,0.02439591]
[1771186626399,0.02331101,68446.0,68429.0,0.02439591]
[1771186627003,0.00042868,68447.0,68421.0,0.34459591]
[1771186627004,0.02331101,68443.0,68421.0,0.34459591]
[1771186627211,0.02331101,68439.0,68421.0,0.34459591]
[1771186627416,0.02331101,68439.0,68421.0,0.02439591]
[1771186627417,0.16213407,68437.0,68421.0,0.02439591]
[1771186627760,0.27792,68439.0,68416.0,0.02439591]
[1771186627761,0.02331101,68432.0,68416.0,0.02439591]
[1771186629043,0.02331101,68432.0,68416.0,0.02459591]
[1771186629634,0.16213407,68432.0,68416.0,0.02459591]
[1771186629863,0.02331101,68431.0,68416.0,0.02459591]
[1771186630991,0.16213407,68430.0,68416.0,0.02459591]
[1771186631278,0.02331101,68429.0,68416.0,0.02459591]
[1771186632662,0.02331101,68429.0,68415.0,0.0002]
[1771186632862,0.02331101,68429.0,68409.0,0.3202657]
[1771186632863,0.02331101,68429.0,68409.0,0.0004657]
[1771186633030,0.07002,68437.0,68409.0,0.0004657]
[1771186633031,0.02331101,68425.0,68409.0,0.0004657]
[1771186633238,0.16213407,68422.0,68409.0,0.0004657]
[1771186633437,0.02288448,68421.0,68409.0,0.0004657]
[1771186634240,0.02288448,68421.0,68409.0,0.00059454]
[1771186635135,0.16523051,68421.0,68409.0,0.00059454]
[1771186635415,0.02288448,68420.0,68409.0,0.00059454]
[1771186635833,0.02288448,68420.0,68416.0,0.0002]
[1771186636422,0.02288448,68424.0,68416.0,0.0002]
[1771186639272,0.16523051,68423.0,68409.0,0.00059454]
[1771186639466,0.02288448,68422.0,68409.0,0.00059454]
[1771186642049,0.02288448,68422.0,68416.0,0.0002]
[1771186646644,0.29924,68425.0,68409.0,0.00059454]
[1771186646645,0.02288448,68420.0,68409.0,0.00059454]
[1771186646863,0.02288448,68418.0,68409.0,0.00059454]
[1771186647064,0.02288448,68417.0,68409.0,0.00059454]
[1771186647739,0.16523051,68416.0,68402.0,0.02290171]
[1771186647913,0.02288448,68414.0,68402.0,0.00026899]
[1771186648876,0.16523051,68412.0,68402.0,0.00026899]
[1771186649073,0.02288448,68411.0,68402.0,0.00026899]
[1771186651350,0.29944,68415.0,68403.0,0.02270171]
[1771186655546,0.29944,68415.0,68403.0,0.02290171]
[1771186660074,0.32232448,68415.0,68403.0,0.0002]
[1771186663214,0.16523051,68414.0,68403.0,0.0002]
[1771186663407,0.02309434,68413.0,68403.0,0.0002]
[1771186669066,0.02309434,68413.0,68371.0,0.07313012]
[1771186669067,0.02338844,68409.0,68391.0,0.02296723]
[1771186669271,0.16753513,68406.0,68396.0,0.00032881]
[1771186669634,0.16753513,68406.0,68391.0,0.02296723]
[1771186669635,0.02338844,68404.0,68391.0,0.02296723]
[1771186669767,0.19092357,68403.0,68387.0,0.02296723]
[1771186669968,0.02338844,68402.0,68387.0,0.02296723]
[1771186670385,0.16753513,68399.0,68378.0,0.02296723]
[1771186670608,0.02338844,68396.0,68380.0,0.53652096]
[1771186670782,0.32538844,68396.0,68381.0,0.02296723]
[1771186671732,0.302,68396.0,68381.0,0.02296723]
[1771186671889,0.02338844,68394.0,68389.0,0.0002]
[1771186672291,0.07309766,68402.0,68389.0,0.0002]
[1771186672292,0.18891368,68420.0,68389.0,0.0002]
[1771186672492,0.12624,68407.0,68393.0,0.02296723]
[1771186672695,0.12624,68407.0,68394.0,0.02296723]
[1771186672897,0.0004,68415.0,68398.0,0.15755599]
[1771186673151,0.0004,68415.0,68399.0,0.02296723]
[1771186673152,0.2092,68409.0,68399.0,0.02296723]
[1771186673352,0.2092,68409.0,68400.0,0.02296723]
[1771186673795,0.02378844,68415.0,68402.0,0.02296723]
[1771186673796,0.0004,68415.0,68402.0,0.02296723]
[1771186673953,0.0004,68415.0,68403.0,0.02296723]
[1771186674367,0.00052857,68415.0,68403.0,0.02296723]
[1771186676863,0.00052857,68415.0,68404.0,0.15755599]
[1771186677074,0.00052857,68415.0,68407.0,0.02182505]
[1771186678756,0.02338844,68423.0,68408.0,0.15755599]
[1771186679047,0.07002,68421.0,68409.0,0.02182505]
[1771186681986,0.07002,68421.0,68409.0,0.15755599]
[1771186682186,0.07002,68421.0,68410.0,0.02182505]
[1771186683447,0.30176,68425.0,68410.0,0.02182505]
[1771186683649,0.30176,68425.0,68408.0,0.00012857]
[1771186683650,0.02378844,68422.0,68408.0,0.00012857]
[1771186684913,0.0004,68421.0,68408.0,0.00012857]
[1771186693064,0.0004,68421.0,68409.0,0.02182505]
[1771186693899,0.0004,68421.0,68410.0,0.51338677]
[1771186697215,0.0004,68421.0,68408.0,0.00012857]
[1771186697426,0.02480986,68420.0,68408.0,0.00012857]
[1771186698251,0.02480986,68420.0,68408.0,0.00032857]
[1771186699051,0.02480986,68420.0,68405.0,0.02182505]
[1771186699265,0.02493872,68420.0,68405.0,0.02182505]
[1771186700698,0.02493872,68420.0,68405.0,0.02178005]
[1771186706402,0.02493872,68420.0,68405.0,0.02198005]
[1771186713283,0.53832549,68420.0,68405.0,0.02198005]
[1771186713462,0.16499595,68419.0,68405.0,0.0002]
[1771186713811,0.02480986,68418.0,68405.0,0.0002]
[1771186714159,0.16499595,68416.0,68405.0,0.0002]
[1771186714359,0.02480986,68415.0,68405.0,0.0002]
[1771186715203,0.02480986,68414.0,68405.0,0.0002]
[1771186716788,0.02480986,68412.0,68401.0,0.0002]
[1771186716993,0.02480986,68410.0,68401.0,0.0002]
[1771186717421,0.02480986,68409.0,68401.0,0.0002]
[1771186717888,0.02480986,68409.0,68398.0,0.0002]
[1771186718103,0.16499595,68407.0,68398.0,0.0002]
[1771186718333,0.02480986,68404.0,68394.0,0.0002]
[1771186718558,0.02480986,68403.0,68394.0,0.0002]
[1771186722852,0.02480986,68403.0,68396.0,0.0002]
[1771186730986,0.07002,68402.0,68394.0,0.0002]
[1771186731188,0.02380006,68401.0,68394.0,0.0002]
[1771186732197,0.16179155,68400.0,68391.0,0.0002]
[1771186732424,0.02380006,68399.0,68391.0,0.0002]
[1771186733227,0.02380006,68399.0,68384.0,0.0001618]
[1771186733399,0.16179155,68396.0,68384.0,0.0001618]
[1771186733665,0.02380006,68395.0,68384.0,0.0001618]
[1771186734233,0.58648541,68401.0,68384.0,0.0001618]
[1771186734234,0.16179155,68393.0,68384.0,0.0001618]
[1771186734447,0.02380006,68392.0,68384.0,0.0001618]
[1771186735828,0.02380006,68397.0,68384.0,0.0001618]
[1771186736952,0.51338677,68401.0,68360.0,0.36456951]
[1771186736953,0.51338677,68391.0,68360.0,0.36456951]
[1771186737160,0.19767835,68396.0,68350.0,0.00023323]
[1771186737161,0.02380006,68369.0,68350.0,0.00023323]
[1771186737391,0.51338677,68380.0,68342.0,0.16080701]
[1771186737392,0.51338677,68360.0,68342.0,0.16080701]
[1771186737631,0.02380006,68359.0,68350.0,0.00043009]
[1771186740461,0.02380006,68368.0,68351.0,0.18239716]
[1771186740678,0.02380006,68368.0,68352.0,0.02178005]
[1771186740924,0.05989871,68368.0,68352.0,0.0216192]
[1771186741192,0.02380006,68368.0,68352.0,0.0216192]
[1771186741400,0.02380006,68366.0,68350.0,0.00043009]
[1771186742031,0.07002,68367.0,68350.0,0.00043009]
[1771186742032,0.02380006,68364.0,68350.0,0.00043009]
[1771186744576,0.02380006,68364.0,68350.0,0.00063009]
[1771186745113,0.02380006,68364.0,68351.0,0.0216192]
[1771186745315,0.02380006,68364.0,68351.0,0.18223631]
[1771186745605,0.02380006,68364.0,68350.0,0.00063009]
[1771186745606,0.02380006,68372.0,68353.0,0.16061711]
[1771186745779,0.87114325,68390.0,68361.0,0.16061711]
[1771186745780,0.32436006,68384.0,68361.0,0.16061711]
[1771186746018,0.02380006,68383.0,68364.0,0.0216192]
[1771186746225,0.02380006,68383.0,68365.0,0.0216192]
[1771186746850,0.16179155,68383.0,68365.0,0.0216192]
[1771186747054,0.02380006,68382.0,68365.0,0.0216192]
[1771186747183,0.07002,68382.0,68365.0,0.0216192]
[1771186747386,0.02380006,68381.0,68365.0,0.0216192]
[1771186751888,0.02380006,68381.0,68365.0,0.0218192]
[1771186754067,0.02380006,68381.0,68365.0,0.0002]
[1771186754293,0.02380006,68381.0,68367.0,0.0216192]
[1771186755448,0.09382006,68381.0,68367.0,0.0216192]
[1771186755779,0.07002,68381.0,68368.0,0.15483192]
[1771186755985,0.07002,68381.0,68370.0,0.0216192]
[1771186756198,0.07002,68381.0,68372.0,0.15483192]
[1771186756461,0.07002,68381.0,68372.0,0.15088654]
[1771186756660,0.07002,68381.0,68366.0,0.15483192]
[1771186756886,0.07002,68381.0,68366.0,0.14734961]
[1771186757510,0.07002,68381.0,68366.0,0.14747849]
[1771186758902,0.14486778,68382.0,68366.0,0.14747849]
[1771186759098,0.02499999,68383.0,68366.0,0.14747849]
[1771186760000,0.0004,68381.0,68366.0,0.14747849]
[1771186760323,0.02499999,68380.0,68366.0,0.14747849]
[1771186760539,0.02499999,68380.0,68366.0,0.00012888]
[1771186761213,0.02499999,68379.0,68366.0,0.00012888]
[1771186761639,0.02499999,68377.0,68366.0,0.00012888]
[1771186761845,0.51408661,68376.0,68358.0,0.0002]
[1771186762054,0.02499999,68368.0,68358.0,0.0002]
[1771186762259,0.16846186,68369.0,68358.0,0.0002]
[1771186762260,0.31357928,68369.0,68358.0,0.0002]
[1771186762462,0.02499999,68367.0,68358.0,0.0002]
[1771186763659,0.14511742,68368.0,68358.0,0.0002]
[1771186763660,0.14511742,68368.0,68358.0,0.15503192]
[1771186763857,0.02499999,68374.0,68358.0,0.15503192]
[1771186764117,0.39384,68377.0,68360.0,0.51408661]
[1771186764311,0.39384,68377.0,68361.0,0.15483192]
[1771186765276,0.0004,68381.0,68367.0,0.15483192]
[1771186767113,0.0004,68381.0,68367.0,0.15467114]
[1771186767946,0.0004,68381.0,68367.0,0.15451038]
[1771186768151,0.0004,68381.0,68360.0,0.51408661]
[1771186768371,0.0004,68381.0,68361.0,0.15483192]
[1771186768709,0.0004,68381.0,68358.0,0.0002]
[1771186768710,0.02499999,68369.0,68358.0,0.0002]
[1771186774615,0.02499999,68369.0,68352.0,0.15483192]
[1771186774883,0.02499999,68369.0,68350.0,0.57872958]
[1771186774884,0.02499999,68369.0,68350.0,0.0002]
[1771186775017,0.02499999,68369.0,68351.0,0.15503192]
[1771186775213,0.02499999,68369.0,68350.0,0.0002]
[1771186775442,0.28489891,68365.0,68350.0,0.0002]
[1771186775644,0.16846186,68363.0,68350.0,0.0002]
[1771186775846,0.14569529,68362.0,68350.0,0.0002]
[1771186776022,0.17069528,68361.0,68350.0,0.0002]
[1771186776386,0.14569529,68360.0,68350.0,0.0002]
[1771186776565,0.14569529,68359.0,68350.0,0.0002]
[1771186776712,0.14569529,68358.0,68350.0,0.0002]
[1771186776919,0.02499999,68361.0,68350.0,0.0002]
[1771186777407,0.16846186,68358.0,68350.0,0.0002]
[1771186777552,0.02499999,68357.0,68350.0,0.0002]
[1771186778260,0.02499999,68356.0,68348.0,0.31244]
[1771186778458,0.14558007,68356.0,68348.0,0.29419164]
[1771186778660,0.02499999,68355.0,68348.0,0.29419164]
[1771186779091,0.02499999,68355.0,68343.0,0.0002]
[1771186779959,0.02499999,68355.0,68346.0,0.00069019]
[1771186780609,0.02499999,68363.0,68346.0,0.00069019]
[1771186780823,0.31390541,68364.0,68346.0,0.00069019]
[1771186781031,0.14544355,68363.0,68346.0,0.00069019]
[1771186781231,0.02499999,68362.0,68346.0,0.00069019]
[1771186781353,0.14544355,68362.0,68346.0,0.00069019]
[1771186781559,0.02499999,68361.0,68346.0,0.00069019]
[1771186782458,0.02499999,68361.0,68346.0,0.00052946]
[1771186784881,0.02499999,68361.0,68343.0,0.0002]
[1771186785078,0.00042929,68361.0,68343.0,0.0002]
[1771186785333,0.00042929,68361.0,68351.0,0.16743715]
[1771186786215,0.00042929,68361.0,68350.0,0.57852958]
[1771186786417,0.00042929,68361.0,68347.0,0.16743715]
[1771186786727,0.00042929,68361.0,68349.0,0.31268]
[1771186791907,0.00042929,68361.0,68350.0,0.51425912]
[1771186792118,0.02539999,68380.0,68352.0,0.16743715]
[1771186792313,0.02539999,68380.0,68349.0,0.31268]
[1771186792314,0.00052876,68376.0,68366.0,0.51425912]
[1771186792542,0.00052876,68376.0,68364.0,0.16743715]
[1771186793167,0.00052876,68376.0,68366.0,0.51425912]
[1771186794100,0.00052876,68376.0,68364.0,0.16743715]
[1771186798874,0.00052876,68376.0,68366.0,0.57828523]
[1771186799069,0.00052876,68376.0,68367.0,0.16743715]
[1771186799304,0.0006979,68387.0,68367.0,0.16743715]
[1771186799530,0.0006979,68387.0,68367.0,0.16756591]
[1771186800076,0.0009076,68387.0,68367.0,0.16756591]
[1771186800466,0.0009076,68387.0,68368.0,0.16743715]
[1771186800694,0.0009076,68387.0,68378.0,0.16743715]
[1771186800891,0.0009076,68387.0,68367.0,0.07326331]
[1771186800892,0.0009076,68387.0,68379.0,0.48131715]
[1771186801631,0.0009076,68387.0,68379.0,0.31388]
[1771186801835,0.02590759,68387.0,68379.0,0.31388]
[1771186802044,0.15471905,68384.0,68367.0,0.00112876]
[1771186802245,0.15471905,68380.0,68367.0,0.00112876]
[1771186802446,0.3538,68386.0,68367.0,0.00012876]
[1771186802447,0.02499999,68379.0,68367.0,0.00012876]
[1771186802776,0.07002,68383.0,68368.0,0.16743715]
[1771186802981,0.07002,68383.0,68370.0,0.16743715]
[1771186803172,0.0703286,68383.0,68370.0,0.16743715]
[1771186804351,0.0703286,68383.0,68367.0,0.00012876]
[1771186804352,0.15471905,68381.0,68367.0,0.00012876]
[1771186804554,0.02499999,68379.0,68367.0,0.00012876]
[1771186804925,0.02499999,68379.0,68362.0,0.31392876]
[1771186805177,0.02543747,68379.0,68362.0,0.31388876]
[1771186806260,0.15471905,68376.0,68362.0,0.31388876]
[1771186806458,0.02499999,68375.0,68362.0,0.31388876]
[1771186812005,0.02539999,68375.0,68362.0,0.31388876]
[1771186812181,0.15511905,68375.0,68362.0,0.31388876]
[1771186812388,0.02499999,68374.0,68362.0,0.31388876]
[1771186812788,0.02499999,68372.0,68355.0,0.46232]
[1771186812988,0.02499999,68371.0,68355.0,0.46232]
[1771186813189,0.02510959,68371.0,68355.0,0.46232]
[1771186813996,0.02510959,68371.0,68355.0,0.31472]
[1771186814679,0.15471905,68372.0,68355.0,0.31472]
[1771186814680,0.00012888,68379.0,68361.0,0.57828523]
[1771186814856,0.0004,68390.0,68378.0,0.16296297]
[1771186816019,0.0004,68390.0,68378.0,0.67670521]
[1771186816158,0.0004,68390.0,68378.0,0.51374224]
[1771186816361,0.0004,68390.0,68378.0,0.67670521]
[1771186816750,0.0004,68390.0,68379.0,0.16296297]
[1771186817361,0.0004,68394.0,68379.0,0.16296297]
[1771186817492,0.0004,68394.0,68378.0,1.02848448]
[1771186817493,0.000199,68398.0,68385.0,0.16296297]
[1771186817678,0.000199,68398.0,68388.0,0.51374224]
[1771186817882,0.000199,68398.0,68385.0,0.16296297]
[1771186819125,0.0004,68401.0,68389.0,0.16296297]
[1771186819348,0.00052893,68401.0,68389.0,0.16296297]
[1771186819894,0.07008,68414.0,68389.0,0.16296297]
[1771186819895,0.02499999,68413.0,68389.0,0.16296297]
[1771186820098,0.02499999,68413.0,68389.0,0.1630919]
[1771186820252,0.000324,68411.0,68389.0,0.1630919]
[1771186821478,0.000324,68411.0,68400.0,0.57787608]
[1771186821726,0.000324,68411.0,68396.0,0.31612]
[1771186821925,0.000324,68411.0,68396.0,0.47908297]
[1771186822126,0.000324,68411.0,68397.0,0.16296297]
[1771186822362,0.0004,68402.0,68400.0,0.57787608]
[1771186822570,0.0004,68402.0,68397.0,0.16296297]
[1771186822777,0.000324,68411.0,68397.0,0.16296297]
[1771186822985,0.02539999,68410.0,68396.0,0.31612]
[1771186824004,0.0004,68410.0,68397.0,0.16296297]
[1771186824678,0.00025387,68410.0,68400.0,0.57787608]
[1771186825303,0.00025387,68410.0,68397.0,0.16296297]
[1771186826723,0.0004,68415.0,68397.0,0.16296297]
[1771186826933,0.02499662,68414.0,68397.0,0.16296297]
[1771186827125,0.02485044,68414.0,68397.0,0.16296297]
[1771186828950,0.0004,68410.0,68397.0,0.16296297]
[1771186831188,0.00025381,68410.0,68397.0,0.16296297]
[1771186832397,0.00010762,68410.0,68397.0,0.16296297]
[1771186832791,5.28e-06,68410.0,68397.0,0.16296297]
[1771186833149,0.00029878,68409.0,68397.0,0.16296297]
[1771186833342,6.44e-06,68409.0,68397.0,0.16296297]
[1771186834387,6.44e-06,68409.0,68397.0,0.1631159]
[1771186837963,6.44e-06,68409.0,68399.0,0.51348366]
[1771186840515,0.02492997,68409.0,68399.0,0.51348366]
[1771186840720,0.02478378,68409.0,68399.0,0.51348366]